{"text_format":"1","workbook":"xlsx","n_sheets":2,"sheets":["i","Лист1"],"not_rendered":{"charts":0,"images":0,"macros":1,"external_links":0,"defined_names":1,"comments":0,"pivot_tables":0},"unopened":[],"bounds":{"document_bytes":16777216,"sheet_cells":100000,"rows_first":2000,"rows_last":500,"rows_between":2000,"halvings":0,"cell_chars":16384,"cell_head_chars":4096},"cells_cut":0,"cells_raw":0,"read":"whole","date_system":"1900"}

{"sheet":"i","index":0,"n_rows":149,"n_cols":5,"rows_kept":149,"cut":false,"hidden":false,"merged":[]}
[null,"B"]
["Интернет",1,{"$f":"IF(A2=\"Интернет\",IF(AND(B2=1,A3=\"Цифровое телевидение\",B3=\"апсейл IPTV при миграции\"),\"ШПД\",\"1\"),IF(A2=\"Цифровое телевидение\",IF(AND(B2=\"апсейл IPTV при миграции\", A1=\"Интернет\",B1=1),\"ШПД\",\"1\")))","v":"ШПД"},null,"В столбце С, проставить первую формулу"]
["Цифровое телевидение","апсейл IPTV при миграции",{"$f":"IF(A3=\"Интернет\",IF(AND(B3=1,A4=\"Цифровое телевидение\",B4=\"апсейл IPTV при миграции\"),\"ШПД\",\"1\"),IF(A3=\"Цифровое телевидение\",IF(AND(B3=\"апсейл IPTV при миграции\", A2=\"Интернет\",B2=1),\"ШПД\",\"1\")))","v":"ШПД"},null,"если в ячейках 1 проставить вторую формулу"]
["Интернет",1,"ШПД"]
["Цифровое телевидение","апсейл IPTV при миграции","ШПД"]
["Интернет","апсейл ШПД при миграции","1"]
["Цифровое телевидение",1,"1"]
["Интернет",1,"ШПД"]
["Цифровое телевидение","апсейл IPTV при миграции","ШПД"]
["Интернет",1,"ШПД"]
["Цифровое телевидение","апсейл IPTV при миграции","ШПД"]
["Интернет",1,"ШПД"]
["Цифровое телевидение","апсейл IPTV при миграции","ШПД"]
["Интернет",1,"ШПД"]
["Цифровое телевидение","апсейл IPTV при миграции","ШПД"]
["Интернет","апсейл ШПД при миграции","1"]
["Цифровое телевидение",1,"1"]
["Интернет",1,"ШПД"]
["Цифровое телевидение","апсейл IPTV при миграции","ШПД"]
["Интернет",1,"ШПД"]
["Цифровое телевидение","апсейл IPTV при миграции","ШПД"]
["Интернет",1,"ШПД"]
["Цифровое телевидение","апсейл IPTV при миграции","ШПД"]
["Интернет",1,"ШПД"]
["Цифровое телевидение","апсейл IPTV при миграции","ШПД"]
["Интернет",1,"ШПД"]
["Цифровое телевидение","апсейл IPTV при миграции","ШПД"]
["Интернет","апсейл ШПД при миграции","1"]
["Цифровое телевидение",1,"1"]
["Интернет",1,"ШПД"]
["Цифровое телевидение","апсейл IPTV при миграции","ШПД"]
["Интернет",1,"ШПД"]
["Цифровое телевидение","апсейл IPTV при миграции","ШПД"]
["Интернет",1,"ШПД"]
["Цифровое телевидение","апсейл IPTV при миграции","ШПД"]
["Интернет",1,"ШПД"]
["Цифровое телевидение","апсейл IPTV при миграции","ШПД"]
["Интернет",1,"ШПД"]
["Цифровое телевидение","апсейл IPTV при миграции","ШПД"]
["Интернет",1,"ШПД"]
["Цифровое телевидение","апсейл IPTV при миграции","ШПД"]
["Интернет",1,"ШПД"]
["Цифровое телевидение","апсейл IPTV при миграции","ШПД"]
["Интернет",1,"ШПД"]
["Цифровое телевидение","апсейл IPTV при миграции","ШПД"]
["Интернет",1,"ШПД"]
["Цифровое телевидение","апсейл IPTV при миграции","ШПД"]
["Интернет",1,"ШПД"]
["Цифровое телевидение","апсейл IPTV при миграции","ШПД"]
["Интернет",1,"ШПД"]
["Цифровое телевидение","апсейл IPTV при миграции","ШПД"]
["Интернет","апсейл ШПД при миграции","1"]
["Цифровое телевидение",1,"1"]
["Интернет",1,"ШПД"]
["Цифровое телевидение","апсейл IPTV при миграции","ШПД"]
["Интернет",1,"ШПД"]
["Цифровое телевидение","апсейл IPTV при миграции","ШПД"]
["Интернет",1,"ШПД"]
["Цифровое телевидение","апсейл IPTV при миграции","ШПД"]
["Интернет",1,"ШПД"]
["Цифровое телевидение","апсейл IPTV при миграции","ШПД"]
["Интернет",1,"ШПД"]
["Цифровое телевидение","апсейл IPTV при миграции","ШПД"]
["Интернет",1,"ШПД"]
["Цифровое телевидение","апсейл IPTV при миграции","ШПД"]
["Интернет",1,"ШПД"]
["Цифровое телевидение","апсейл IPTV при миграции",{"$f":"IF(A67=\"Интернет\",IF(AND(B67=1,A68=\"Цифровое телевидение\",B68=\"апсейл IPTV при миграции\"),\"ШПД\",\"1\"),IF(A67=\"Цифровое телевидение\",IF(AND(B67=\"апсейл IPTV при миграции\", A66=\"Интернет\",B66=1),\"ШПД\",\"1\")))","v":"ШПД"}]
["Интернет",1,"ШПД"]
["Цифровое телевидение","апсейл IPTV при миграции","ШПД"]
["Интернет",1,"ШПД"]
["Цифровое телевидение","апсейл IPTV при миграции","ШПД"]
["Интернет",1,"ШПД"]
["Цифровое телевидение","апсейл IPTV при миграции","ШПД"]
["Интернет",1,"ШПД"]
["Цифровое телевидение","апсейл IPTV при миграции","ШПД"]
["Интернет",1,"ШПД"]
["Цифровое телевидение","апсейл IPTV при миграции","ШПД"]
["Интернет",1,"ШПД"]
["Цифровое телевидение","апсейл IPTV при миграции","ШПД"]
["Интернет",1,"ШПД"]
["Цифровое телевидение","апсейл IPTV при миграции","ШПД"]
["Интернет",1,"ШПД"]
["Цифровое телевидение","апсейл IPTV при миграции","ШПД"]
["Интернет",1,"ШПД"]
["Цифровое телевидение","апсейл IPTV при миграции","ШПД"]
["Интернет",1,"ШПД"]
["Цифровое телевидение","апсейл IPTV при миграции","ШПД"]
["Интернет",1,"ШПД"]
["Цифровое телевидение","апсейл IPTV при миграции","ШПД"]
["Интернет",1,"ШПД"]
["Цифровое телевидение","апсейл IPTV при миграции","ШПД"]
["Интернет",1,"ШПД"]
["Цифровое телевидение","апсейл IPTV при миграции","ШПД"]
["Интернет",1,"ШПД"]
["Цифровое телевидение","апсейл IPTV при миграции","ШПД"]
["Интернет",1,"ШПД"]
["Цифровое телевидение","апсейл IPTV при миграции","ШПД"]
["Интернет",1,"ШПД"]
["Цифровое телевидение","апсейл IPTV при миграции","ШПД"]
["Интернет",1,"ШПД"]
["Цифровое телевидение","апсейл IPTV при миграции","ШПД"]
["Интернет",1,"ШПД"]
["Цифровое телевидение","апсейл IPTV при миграции","ШПД"]
["Интернет",1,"ШПД"]
["Цифровое телевидение","апсейл IPTV при миграции","ШПД"]
["Интернет",1,"ШПД"]
["Цифровое телевидение","апсейл IPTV при миграции","ШПД"]
["Интернет","апсейл ШПД при миграции","1"]
["Цифровое телевидение",1,"1"]
["Интернет",1,"ШПД"]
["Цифровое телевидение","апсейл IPTV при миграции","ШПД"]
["Интернет",1,"ШПД"]
["Цифровое телевидение","апсейл IPTV при миграции","ШПД"]
["Интернет","апсейл ШПД при миграции","1"]
["Цифровое телевидение",1,"1"]
["Интернет",1,"ШПД"]
["Цифровое телевидение","апсейл IPTV при миграции","ШПД"]
["Интернет",1,"ШПД"]
["Цифровое телевидение","апсейл IPTV при миграции","ШПД"]
["Интернет",1,"ШПД"]
["Цифровое телевидение","апсейл IPTV при миграции","ШПД"]
["Интернет",1,"ШПД"]
["Цифровое телевидение","апсейл IPTV при миграции","ШПД"]
["Интернет",1,"ШПД"]
["Цифровое телевидение","апсейл IPTV при миграции","ШПД"]
["Интернет",1,"ШПД"]
["Цифровое телевидение","апсейл IPTV при миграции","ШПД"]
["Интернет","апсейл ШПД при миграции","1"]
["Цифровое телевидение",1,"1"]
["Интернет",1,"ШПД"]
["Цифровое телевидение","апсейл IPTV при миграции",{"$f":"IF(A131=\"Интернет\",IF(AND(B131=1,A132=\"Цифровое телевидение\",B132=\"апсейл IPTV при миграции\"),\"ШПД\",\"1\"),IF(A131=\"Цифровое телевидение\",IF(AND(B131=\"апсейл IPTV при миграции\", A130=\"Интернет\",B130=1),\"ШПД\",\"1\")))","v":"ШПД"}]
["Интернет",1,"ШПД"]
["Цифровое телевидение","апсейл IPTV при миграции","ШПД"]
["Интернет",1,"ШПД"]
["Цифровое телевидение","апсейл IPTV при миграции","ШПД"]
["Интернет",1,"ШПД"]
["Цифровое телевидение","апсейл IPTV при миграции","ШПД"]
["Интернет",1,"ШПД"]
["Цифровое телевидение","апсейл IPTV при миграции","ШПД"]
["Интернет",1,"ШПД"]
["Цифровое телевидение","апсейл IPTV при миграции","ШПД"]
["Интернет",1,"ШПД"]
["Цифровое телевидение","апсейл IPTV при миграции","ШПД"]
["Интернет",1,"ШПД"]
["Цифровое телевидение","апсейл IPTV при миграции","ШПД"]
["Интернет",1,"ШПД"]
["Цифровое телевидение","апсейл IPTV при миграции","ШПД"]
["Интернет",1,"ШПД"]
["Цифровое телевидение","апсейл IPTV при миграции","ШПД"]

{"sheet":"Лист1","index":1,"n_rows":2,"n_cols":1,"rows_kept":2,"cut":false,"hidden":false,"merged":[]}
["формула =ЕСЛИ(A2=\"Интернет\";ЕСЛИ(И(B2=\"апсейл ШПД при миграции\";A3=\"Цифровое телевидение\";B3=1);\"IPTV\";\"1\");ЕСЛИ(A2=\"Цифровое телевидение\";ЕСЛИ(И(B2=1; A1=\"Интернет\";B1=\"апсейл ШПД при миграции\");\"IPTV\";\"1\")))"]
["формула =ЕСЛИ(A2=\"Интернет\";ЕСЛИ(И(B2=1;A3=\"Цифровое телевидение\";B3=\"апсейл IPTV при миграции\");\"ШПД\";\"1\");ЕСЛИ(A2=\"Цифровое телевидение\";ЕСЛИ(И(B2=\"апсейл IPTV при миграции\"; A1=\"Интернет\";B1=1);\"ШПД\";\"1\")))"]